Cogmind - Beta 16.1 *** ADVENTURER MODE // 2026.03.29 @ 10:50:21 Player: Raveston Result: Self-destructed Performance ------------- Evolutions (2) 1000 Regions Visited (5) 1000 Robots Destroyed (32) 160 Value Destroyed (1042) 1042 Prototype IDs (1) 20 Alien Tech Used (0) 0 Bonus (49) 49 TOTAL SCORE: 3271 Bonus ------- Follower Combat Kills 49 Cogmind --------- Core Integrity 523/550 Matter 6/300 Energy 220/220 System Corruption 0% Temperature Cool (27) Movement Walking (190) Ox1 Location -8/Materials Parts ------- > --- POWER (3) -------- Light Deuterium Engine Light Deuterium Engine Light Deuterium Engine > --- PROPULSION (2) --- Aluminum Leg Aluminum Leg > --- UTILITY (4) ------ Structural Scanner Advanced Visual Processing Unit Recoil Stabilizer Improved Light Armor Plating > --- WEAPON (2) ------- Heavy Assault Rifle Rocket Launcher > --- INVENTORY (5) ---- Aluminum Leg Shock Rifle High-powered Shotgun Light Cannon Flak Cannon Peak State ------------ > --- POWER ------------ Improved Ion Engine Deuterium Engine Deuterium Engine > --- PROPULSION ------- Aluminum Leg Aluminum Leg > --- UTILITY ---------- Structural Scanner Recoil Stabilizer Improved Medium Armor Plating Splice Drone Bay > --- WEAPON ----------- Heavy Assault Rifle Rocket Launcher > --- INVENTORY -------- Light Ion Engine Light Ion Engine Light Assault Rifle Light Cannon [Rating: 29] Favorites ----------- Power Light Ion Engine Engine Light Ion Engine Propulsion Improved Aluminum Leg Leg Improved Aluminum Leg Wheel Wheel Utility Splice Drone Bay Device Splice Drone Bay Storage Medium Matter Pod Processor Terrain Scan Processor Protection Utility Shielding Weapon Light Assault Rifle Energy Gun Medium Laser Ballistic Gun Light Assault Rifle Ballistic Cannon Light Cannon Launcher Rocket Launcher Special Weapon Plasma Cutter Build | -11 -10 -10 -10 -9 -8 ------- Run | Yrd Mat Min Exi Min Mat Slots Evolved 4 | . . . . . 4 Power 2 | . . . . . 2 Propulsion . | . . . . . . Utility 2 | . . . . . 2 Weapon . | . . . . . . Parts Attached 43 | 7 14 1 . 5 16 Power 10 | 1 1 . . 1 7 Engine 10 | 1 1 . . 1 7 Core . | . . . . . . Reactor . | . . . . . . Propulsion 11 | 3 4 . . 2 2 Treads . | . . . . . . Leg 10 | 2 4 . . 2 2 Wheel 1 | 1 . . . . . Hover . | . . . . . . Flight . | . . . . . . Utility 13 | 1 5 1 . 1 5 Device 3 | . . 1 . . 2 Storage 5 | 1 4 . . . . Processor 2 | . . . . . 2 Hackware . | . . . . . . Protection 3 | . 1 . . 1 1 Artifact . | . . . . . . Weapon 9 | 2 4 . . 1 2 Energy Gun 3 | 1 2 . . . . Energy Cannon . | . . . . . . Ballistic Gun 3 | 1 . . . 1 1 Ballistic Cannon 1 | . 1 . . . . Launcher 1 | . . . . . 1 Special Weapon 1 | . 1 . . . . Impact Weapon . | . . . . . . Slashing Weapon . | . . . . . . Piercing Weapon . | . . . . . . Special Melee Weapon . | . . . . . . Unidentified Prototypes 1 | . . 1 . . . Parts Lost . | . . . . . . Power . | . . . . . . Propulsion . | . . . . . . Utility . | . . . . . . Weapon . | . . . . . . Highest Loss Streak . | . . . . . . To Critical Strikes . | . . . . . . Average Backups 2 | . . 2 2 4 2 Power . | . . . . . . Propulsion . | . . . . . . Utility . | . . . . . . Weapon 1 | . . 1 1 1 2 Tool/Special . | . . . . . . Unused Backups 9 | 1 . . 2 3 3 Power 2 | 1 . . 1 . . Propulsion . | . . . . . . Utility 3 | . . . 1 1 1 Weapon 4 | . . . . 2 2 Tool/Special . | . . . . . . Average Slot Usage (%) 98 | . 97 100 100 100 96 Engine 16 | . 13 14 14 14 25 Leg 26 | . 28 28 28 28 18 Device 10 | . . 9 14 14 20 Storage 7 | . 19 14 4 . . Protection 9 | . 6 4 9 14 10 Energy Gun 8 | . 14 14 14 4 . Ballistic Gun 8 | . 11 . . 9 9 Ballistic Cannon 8 | . . 14 14 14 5 Peak Build Rating 29 | 6 10 15 15 20 29 Average Rating 14 | 5 7 13 15 15 22 On Entrance 10 | . 6 9 15 15 20 Avg Prop Armor Cover (%) 20 | 21 19 . . . . Naked Turns . | . . . . . . Heaviest Build 48 | 11 48 20 20 22 46 Greatest Support 31 | 3 26 26 26 31 31 Greatest Overweight (x) 8 | 3 8 . . 1 2 Average Overweight (x) . | 2 . . . . 1 Largest Inventory Capacity 20 | 8 20 5 5 5 5 Average Capacity 7 | 7 11 5 5 5 5 Most Carried 5 | 5 3 3 5 5 5 Average Carried 2 | . . 2 2 4 2 Final Capacity 8 | 8 5 5 5 5 5 Final Carried 5 | . 2 3 2 3 5 Class Distribution -------------------- 86% | Mutant 13% | Scavenger-Mutant Dominant Class ---------------- Mutant | -10/Materials Mutant | -10/Mines Mutant | -10/Exiles Mutant | -9/Mines Scavenger-Mutant | -8/Materials Resources | -11 -10 -10 -10 -9 -8 ----------- Run | Yrd Mat Min Exi Min Mat Matter Collected 887 | 227 360 . 10 67 223 Remotely . | . . . . . . Salvage Created 891 | . 359 . . . 532 Parts 56 | . 18 . . . 38 Haulers Intercepted . | . . . . . . Recyclers Shooed 1 | . 1 . . . . Parts Field Recycled . | . . . . . . Retrieved Matter . | . . . . . . Parts Self-Destructed . | . . . . . . Prevented . | . . . . . . Parts Restored . | . . . . . . Kills | -11 -10 -10 -10 -9 -8 ------- Run | Yrd Mat Min Exi Min Mat Combat Hostiles Destroyed 21 | . 8 . . 2 11 Guns 10 | . 8 . . . 2 Cannons 5 | . . . . 1 4 AOE 6 | . . . . 1 5 Classes Destroyed 8 | . 2 . . 1 5 Worker 2 | . . . . . 2 Builder 5 | . . . . . 5 Recycler 1 | . . . . . 1 Watcher 3 | . 2 . . . 1 Grunt 16 | . 8 . . . 8 Sentry 1 | . . . . . 1 Demolisher 2 | . . . . 2 . Hunter 2 | . . . . . 2 Best Kill Streak 8 | . 3 . . 2 8 Combat Bots Only 3 | . 3 . . 2 3 Max Kills in Single Turn 2 | . 1 . . 1 2 Gunslinging . | . . . . . . Exploded 1 | . . . . 1 1 Melee . | . . . . . . Uniques/NPCs Destroyed . | . . . . . . Combat | -11 -10 -10 -10 -9 -8 -------- Run | Yrd Mat Min Exi Min Mat Hostile Shots Fired 161 | . 73 . . 9 79 Missed 39 | . 15 . . 2 22 Hits 122 | . 58 . . 7 57 Projectile 122 | . 58 . . 7 57 AOE 8 | . . . . 8 . Critical Strikes 4 | . 1 . . . 3 Damage Taken 1556 | . 541 . . 250 765 Core 226 | . 159 . . 40 27 Absorbed by Shields . | . . . . . . Redirected to Shielding 18 | . 2 . . 16 . Ignored by Resistances 457 | . 169 . . 68 220 Core Remaining (%) 60 | 100 . . . 20 . Volleys Fired 95 | . 49 . . 4 42 Largest 2 | . 2 . . 2 2 Hottest 80 | . 80 . . 80 56 Shots Fired 187 | . 96 . . 9 82 Gun 140 | . 95 . . 5 40 Cannon 34 | . 1 . . 4 29 Launcher 13 | . . . . . 13 Special . | . . . . . . Kinetic 122 | . 48 . . 5 69 Thermal 52 | . 48 . . 4 . Explosive 13 | . . . . . 13 Electromagnetic . | . . . . . . Robot Hit Streak 23 | . 23 . . 4 10 Robot Miss Streak 3 | . 1 . . 1 3 Penetration Max . | . . . . . . Secondary Targets 1 | . 1 . . . . Max Gunslinging Chain 1 | . 1 . . . . Shots Hit Robots 137 | . 75 . . 5 57 Core Hits 67 | . 22 . . 1 44 Critical Kills . | . . . . . . Critical Parts Destroyed . | . . . . . . Critical Strikes . | . . . . . . Melee Attacks . | . . . . . . Impact . | . . . . . . Slashing . | . . . . . . Piercing . | . . . . . . Sneak Attacks . | . . . . . . Combat Hostiles . | . . . . . . Follow-up Attacks . | . . . . . . Damage Inflicted 2392 | . 736 . . 89 1567 Guns 1015 | . 719 . . 36 260 Cannons 437 | . 17 . . 37 383 Explosions 915 | . . . . . 915 Melee . | . . . . . . Ramming 25 | . . . . 16 9 Kinetic 1024 | . 344 . . 37 643 Thermal 428 | . 392 . . 36 . Explosive 915 | . . . . . 915 Electromagnetic . | . . . . . . Impact . | . . . . . . Slashing . | . . . . . . Piercing . | . . . . . . Highest Corruption 1 | . 1 1 1 1 . Average Corruption 1 | . 1 1 1 1 . Corruption Purged . | . . . . . . Corruption Blocked . | . . . . . . Effects 21 | . 7 3 3 8 . Message Errors 4 | . 3 . . 1 . Matter Fused 5 | . 2 . 2 1 . Heat Flow Errors 1 | . . . 1 . . Energy Discharges 2 | . . . . 2 . Parts Rejected 1 | . 1 . . . . Parts Fused 1 | . . . . 1 . Data Loss (minor) 6 | . 1 3 . 2 . Misfires 1 | . . . . 1 . Overload Shots . | . . . . . . Overflow Damage . | . . . . . . Projectiles . | . . . . . . Explosions . | . . . . . . Melee . | . . . . . . Knockbacks 5 | . . . . . 5 Impact . | . . . . . . Kinetic 5 | . . . . . 5 Secondary . | . . . . . . Self-Inflicted Damage 82 | . . . . . 82 Shots 4 | . . . . . 4 Rammed . | . . . . . . Targets Rammed 7 | . . . . 4 3 Kicked 7 | . . . . 4 3 Crushed . | . . . . . . Highest Temperature 353 | . 350 . 148 54 353 Average Temperature 88 | . 89 . 75 24 93 Received Heat Transfer 840 | . 408 . . . 432 Effects 8 | . 1 . . . 7 Shutdowns 1 | . 1 . . . . Interference 4 | . . . . . 4 Short Circuit 2 | . . . . . 2 Damage (minor) 1 | . . . . . 1 Siege Activations . | . . . . . . Martial Activations . | . . . . . . Shielding Activations . | . . . . . . Robots Disrupted . | . . . . . . Combat Hostiles . | . . . . . . Robots Corrupted . | . . . . . . Combat Hostiles . | . . . . . . Parts Fried . | . . . . . . Impact Corruptions . | . . . . . . Robots Melted . | . . . . . . Combat Hostiles . | . . . . . . Parts Melted . | . . . . . . Heat Transferred 1295 | . 1184 . . 111 . Parts Sabotaged . | . . . . . . Parts Stolen . | . . . . . . Parts Stripped . | . . . . . . Power Chain Reactions . | . . . . . . Alert | -11 -10 -10 -10 -9 -8 ------- Run | Yrd Mat Min Exi Min Mat Maximum Alert Level . | . . . . . . Low Security (%) 100 | 100 100 100 . 100 100 Level 1 . | . . . . . . Level 2 . | . . . . . . Level 3 . | . . . . . . Level 4 . | . . . . . . Level 5 . | . . . . . . High Security . | . . . . . . Max Security . | . . . . . . Peak Influence 197 | . 50 . . 41 197 Initial . | . . . . . . Average 15 | . 9 . . 2 55 Influence Increases 734 | . 232 . . 102 400 Destroy 0b10 Robot/C 480 | . 160 . . 80 240 Destroy 0b10 Robot/NC 55 | . 10 . . . 45 Destroy Leader 106 | . 34 . . 20 52 Allied During Kill 2 | . . . . 2 . Successful Hack 13 | . 13 . . . . Disable Machine 27 | . . . . . 27 Destroy Structure 36 | . . . . . 36 Lose Combat Pursuer 15 | . 15 . . . . Influence Decreases 587 | . 232 . . 102 253 Time Decay 567 | . 232 . . 82 253 Lost Ally 20 | . . . . 20 . Squads Dispatched 6 | . 2 . . . 4 Investigation 2 | . 2 . . . . Extermination . | . . . . . . Reinforcement 4 | . . . . . 4 Assault . | . . . . . . Garrison . | . . . . . . Intercept . | . . . . . . Searches Triggered . | . . . . . . Construction Impeded 2 | . . . . . 2 Haulers Reinforced . | . . . . . . Active Scanning Responses . | . . . . . . Cargo Convoy Interrupts . | . . . . . . Stealth | -11 -10 -10 -10 -9 -8 --------- Run | Yrd Mat Min Exi Min Mat Distress Signals 1 | . . . . . 1 Communications Jammed . | . . . . . . Distress Signals . | . . . . . . Times Spotted 43 | . 15 . . 11 17 Peak Tracking Total 5 | . 5 . . 4 4 Tactical Retreats 1 | . 1 . . . . Traps | -11 -10 -10 -10 -9 -8 ------- Run | Yrd Mat Min Exi Min Mat Traps Triggered 2 | . 2 . . . . Indirectly . | . . . . . . Trap Hack Attempts . | . . . . . . Triggered . | . . . . . . Disarmed . | . . . . . . Reprogrammed . | . . . . . . Reused . | . . . . . . Traps Extracted . | . . . . . . Installed . | . . . . . . Triggered . | . . . . . . Machines | -11 -10 -10 -10 -9 -8 ---------- Run | Yrd Mat Min Exi Min Mat Machines Disabled 3 | . . . . . 3 Max in Single Turn 1 | . . . . . 1 Machines Repaired . | . . . . . . Machines Dismantled . | . . . . . . Machines Sabotaged . | . . . . . . Overloaded Fab Kills . | . . . . . . Hacking | -11 -10 -10 -10 -9 -8 --------- Run | Yrd Mat Min Exi Min Mat Machines Accessed 7 | . 3 1 1 1 1 Terminals 3 | . 3 . . . . Fabricators . | . . . . . . Repair Stations . | . . . . . . Recycling Units 1 | . . . . . 1 Scanalyzers . | . . . . . . Garrison Access . | . . . . . . Total Hacks 44 | . 13 1 23 1 6 Successful 41 | . 11 1 23 1 5 Failed 3 | . 2 . . . 1 Catastrophic . | . . . . . . Database Lockouts . | . . . . . . Manual . | . . . . . . Terminals 13 | . 13 . . . . Fabricators . | . . . . . . Repair Stations . | . . . . . . Recycling Units 6 | . . . . . 6 Scanalyzers . | . . . . . . Garrison Access . | . . . . . . Terminal Hacks 36 | . 11 1 23 1 . Record 27 | . 4 . 23 . . Robot Analysis 1 | . 1 . . . . Open Door 2 | . . 1 . 1 . Branch Access Points 1 | . 1 . . . . Alert Level 1 | . 1 . . . . Locate Traps 1 | . 1 . . . . Hauler Manifests 1 | . 1 . . . . Registered Prototypes 1 | . 1 . . . . Zone Layout 1 | . 1 . . . . Fabricator Hacks . | . . . . . . Repair Station Hacks . | . . . . . . Recycling Unit Hacks 5 | . . . . . 5 Process 1 | . . . . . 1 Report Inventory 1 | . . . . . 1 Retrieve Matter 2 | . . . . . 2 Retrieve Components 1 | . . . . . 1 Scanalyzer . | . . . . . . Garrison Access Hacks . | . . . . . . Unauthorized Hacks . | . . . . . . Terminals . | . . . . . . Fabricators . | . . . . . . Repair Stations . | . . . . . . Recycling Units . | . . . . . . Scanalyzers . | . . . . . . Garrison Access . | . . . . . . Data Cores Recovered . | . . . . . . Used . | . . . . . . Hacking Detections 4 | . 3 . . . 1 Full Trace Events 2 | . 1 . . . 1 Feedback Events . | . . . . . . Feedback Blocked . | . . . . . . Robot Schematics Acquired . | . . . . . . Robots Built . | . . . . . . Authchips . | . . . . . . Time . | . . . . . . Total Robot Build Rating . | . . . . . . Part Schematics Acquired . | . . . . . . Parts Built . | . . . . . . Authchips . | . . . . . . Time . | . . . . . . Total Part Build Rating . | . . . . . . Part Studies Acquired . | . . . . . . Parts Repaired . | . . . . . . Time . | . . . . . . Parts Recycled . | . . . . . . Recycled Matter . | . . . . . . Retrieved Matter . | . . . . . . Retrieved Components 6 | . . . . . 6 Parts Scanalyzed . | . . . . . . Part Schematics Acquired . | . . . . . . Parts Damaged . | . . . . . . Bothacking | -11 -10 -10 -10 -9 -8 ------------ Run | Yrd Mat Min Exi Min Mat Used RIF Installer . | . . . . . . Robots Hacked . | . . . . . . Non-combat . | . . . . . . Combat . | . . . . . . Robot Hacks Applied . | . . . . . . Relay Couplers Released . | . . . . . . Fabnet Peak Effective % . | . . . . . . Robots Rewired . | . . . . . . Allies Hacked . | . . . . . . Hacks Repelled . | . . . . . . Allies | -11 -10 -10 -10 -9 -8 -------- Run | Yrd Mat Min Exi Min Mat Total Allies 5 | . . . . 5 . Largest Group 1 | . . . . 1 . Highest-Rated Group 8 | . . . . 8 . Highest-Rated Ally 8 | . . . . 8 . Total Orders . | . . . . . . Ally Attacks 23 | . . . . 20 3 Total Damage 97 | . . . . 88 9 Kills 4 | . . . . 3 1 Allies Corrupted . | . . . . . . Allies Melted . | . . . . . . Intel | -11 -10 -10 -10 -9 -8 ------- Run | Yrd Mat Min Exi Min Mat Active Infowar (turns) 652 | . . . . . 652 Structural 652 | . . . . . 652 Robot Analysis Total 1 | . 1 . . . . Derelict Logs Recovered 1 | . . . . 1 . Drone Launches 17 | . . 6 . 9 2 Drone Recoveries 12 | . . . . 9 3 Exploration | -11 -10 -10 -10 -9 -8 ------------- Run | Yrd Mat Min Exi Min Mat Turns Passed 3770 | 139 1149 170 367 1241 704 Spaces Moved 2360 | 77 601 140 302 961 279 Core 111 | 77 34 . . . . Treads . | . . . . . . Legs 2249 | . 567 140 302 961 279 Wheels . | . . . . . . Hover . | . . . . . . Flight . | . . . . . . Fastest Speed 50 | 50 100 120 120 120 120 Average Speed 140 | 162 161 120 120 120 190 Slowest Speed 450 | 200 450 120 120 190 260 Overloaded Moves . | . . . . . . Propulsion Burnouts . | . . . . . . Robots Hopped . | . . . . . . Potential Cave-ins 2 | . . . . 2 . Cave-ins Triggered . | . . . . . . Exploration Rate (%) 47 | 5 58 25 77 95 26 Regions Visited 5 Branch Regions 3 Pre-discovered Areas 2 | . . . 1 1 . Known Exits Taken 1 | . 1 . . . . Unknown Exits Taken 4 | 1 . 1 1 1 . Scrap Searched 3 | . . . . 3 . Spaces Dug . | . . . . . . Terrain Destroyed 36 | . . . . . 36 Melee . | . . . . . . Projectile . | . . . . . . AOE 36 | . . . . . 36 Terrain Rammed . | . . . . . . Walls Destroyed . | . . . . . . Machines Disabled . | . . . . . . Actions | -11 -10 -10 -10 -9 -8 --------- Run | Yrd Mat Min Exi Min Mat Total 2650 | 90 697 141 308 1040 374 Wait 53 | . . . . 53 . Move 2355 | 76 600 139 301 960 279 Hop . | . . . . . . Pick Up 51 | 5 17 1 2 7 19 Fast Attach 3 | 3 . . . . . Attach 16 | 3 6 . 1 . 6 Detach 3 | . 2 . . . 1 Swap 29 | 1 10 1 . 5 12 Drop 37 | 2 13 . 3 7 12 Fire 95 | . 49 . . 4 42 Melee . | . . . . . . Ram . | . . . . . . Kick 7 | . . . . 4 3 Crush . | . . . . . . Escape Stasis . | . . . . . . Rewire 1 | . . . 1 . . Trap . | . . . . . . Miscellaneous . | . . . . . . Route ------- -11/Scrapyard -10/Materials (discovered 3 exits: [*Mat x2] / *Min) -10/Mines -10/Exiles (discovered 2 exits: *Min x2) -9/Mines -8/Materials History --------- Turn | Location | Event 20 | -11/Scrapyard | Discovered new exit (range 13) 140 | -11/Scrapyard | Entered Materials 141 | -10/Materials | Met a group of wandering Federalists 317 | -10/Materials | Build established: Mutant 527 | -10/Materials | Discovered new exit (range 16) 782 | -10/Materials | Discovered new exit (range 16) 782 | -10/Materials | Identified exit to Mines 1041 | -10/Materials | Core integrity fell below 50% 1289 | -10/Materials | Entered Mines 1325 | -10/Mines | Found the Drone Emporium 1335 | -10/Mines | Found Prototype Device 1336 | -10/Mines | Identified Splice Drone Bay 1452 | -10/Mines | Deemed a non-threat by the Exiles lab entrance 1452 | -10/Mines | Discovered new exit (range 5) 1459 | -10/Mines | Entered Exiles 1459 | -10/Exiles | Accompanied by 6 allies 1483 | -10/Exiles | Discovered new exit (range 16) 1500 | -10/Exiles | Met 8R-AWN 1522 | -10/Exiles | Met EX-HEX 1605 | -10/Exiles | Met EX-DEC 1634 | -10/Exiles | Visited The Gauntlet 1776 | -10/Exiles | Learned location of Zion (-7) 1810 | -10/Exiles | Discovered new exit (range 16) 1826 | -10/Exiles | Entered Mines 1826 | -9/Mines | Accompanied by 6 allies 1827 | -9/Mines | Assembled infested the area 1832 | -9/Mines | Assisted by a Guerilla fighting off Assembled 1959 | -9/Mines | Learned Materials terminal intel 2073 | -9/Mines | Learned location of Storage (-8) 2227 | -9/Mines | Lost 3 allies 2472 | -9/Mines | Received a Rocket Launcher from a helpful Derelict 3029 | -9/Mines | Discovered new exit (range 8) 3067 | -9/Mines | Entered Materials 3067 | -8/Materials | Accompanied by 1 ally 3067 | -8/Materials | Evolved 4 slots: Power x2, Utility x2 3068 | -8/Materials | Loaded intel: 12 terminal locations 3404 | -8/Materials | Build established: Scavenger-Mutant 3771 | -8/Materials | Self-destructed Last Messages --------------- due to how they are calculated by Valve. 03736_ U-05 Engineer lays Concrete. 03736_ K-01 Serf collects debris. 03738_ U-05 Engineer builds a Wall. 03742_ U-05 Engineer lays Concrete. 03742_ K-01 Serf collects debris. 03742_ U-05 Engineer lays Concrete. 03743_ The unstable cave ceiling collapses. 03745_ Acquired Flak Cannon. 03746_ U-05 Engineer lays Concrete. 03748_ K-01 Serf collects debris. 03749_ U-05 Engineer lays Concrete. 03761_ Kicked U-05 Engineer. 03761_ ALERT: Construction progress impeded, dispatching reinforcements to local area. 03762_ U-05 Engineer builds a Wall. 03765_ Acquired Aluminum Leg. 03767_ U-05 Engineer builds a Wall. 03769_ U-05 Engineer lays Concrete. 03771_ Critical hit (Burn: +37). Map ----- +----------------------------------------------------+ | ?????????T???????????????? # ###########???### | | ?????????"?????????????? = # ################ | | ??????????????????????? = # %=##"""T"""#######! | | ??????????????????????#####?## [%%%%= #### | | ????????????????????????????##^%%!== ! #### | | ????????????????????????????## %""" """ " | | ????????????????????????????## ! =""" ^""" #### | | ??????????????????############*!* """ """ #### | | ??????????????????############!!*==!% ^ #### | | ??????????????????## """ # ^ % #### | | ??????????????????##="Y" """ # ##### | | ??????????????????##!![| " " # | | ??????????????????## ! # | | ??????????????????## # | | ??????????????????## % ## #+############# | | ??????????????????## ### # ## | | ??????????????????## ## # ?????????? | | ??????????????????### ####+##### # ?????????? | | ??????????????? #### # # ? ????????? | | ???????????????####### # # ? ???????? | | ???????????????## /! # u " t # ?? ????????? | | ???????????????## /! + "" # ????????????# | | ???????????????## !! #k "" # ????????????# | | ???????????????## # uk " # ???????????? | | ???????????????## # # ????????????? | | ???????????????######## #@ # ???????????## | | ???????????????### *+* # ???????????## | | ???????????????? #! # # ???????????## | | ???????????????? # *!# ##???????????## | | ???????????????? # *!!#k = "" ##???????????## | | ???????????????? # *[! #u """ ######????????? | | ???????????????? # ! * # g""" ?""????? | | ????????????????######### ?T?????? | | ????????????????########T ???????? | | ??????????????????????### #######???????? | | ?????????????????????? "" #######???????? | | ??????????????????????#"T [! ##????????????? | | ??????????????????????#"" a [[ ##????????????? | | ??????????????????????# # ##????????????? | | ??????????????????????? # ##????????????? | | ??????????????????????? #?????????????? | | ??????????????????????? # #?????????????? | | ???????????????????????## ##"T"###?????????????? | | ????????????????????????# ######???????????????? | | ????????????????????????# #????????????????????? | | ????????????????????????# #????????????????????? | | ????????????????????????? ?????????????????????? | | ????????????????????????? ?????????????????????? | | ????????????????????????? T ?????????????????????? | | ?????????????????????????????????????????????????? | +----------------------------------------------------+ Best States ------------- Heat Dissipation 31 Energy Generation 32 Energy Capacity 615 Matter Stores 400 Matter Capacity 400 Sight Range 16 Terrain Scan Density 85 Armor Coverage 375 Resistance: KI 20 Resistance: TH 20 Resistance: EX 20 Resistance: EM 20 Resistance: I 20 Resistance: S 20 Resistance: P 20 Utility Shielding 33 Evasion (%) 55 Recoil Reduction 4 Offensive Hacking 10 Item Schematics ----------------- None Robot Schematics ------------------ None Fabricated ------------ Nothing Repaired ---------- Nothing Studied --------- None Alien Tech Used ----------------- None Achievements -------------- Crack Shot DATA ERROR: Steam Global Achievement% Factory Defaults For Emergencies Only I Have A Map? Librarian One Hack Too Far Oops Release The Drones! Risk Taker Satisfying Shopping List Spot Them First Tourist Uninvited Guest Challenges ------------ None Game ------ Seed TacticalLauncherGravjet Manual? 0 Play Time 00:50:27 Cumulative 10.9 hours Start 2026.03.28 @ 23:09:59 End 2026.03.29 @ 10:50:21 Sessions 2 Manual Loads 0 Difficulty Adventurer Special Mode None Game No. 25 Rogue 24 Adventurer 1 Explorer 0 Win Type - Total 0 Types 0/0/0/0/0/0/0/0/0/0 Lore% 3 Gallery% 9 Achievement% 3 Wizard Run 0 Options --------- Layout 1 ASCII 0 Keyboard 0 Movement Arrows Keybinds 0 Fullscreen 1 Font 24/Smallcaps Map View 50x35 Zoom Use 0% Tactical HUD 1 Map Filters NONE Filters NONE Steam 1 RUN: 0721f65e-97c0-44ca-a510-ae408c08889b